fUST/lending_fUST_20240414
["ID","MTS","AMOUNT","RATE_DAILY","PERIOD"]
[322460048,1713030641443,-500.0,0.00032876,7]
[322460049,1713030641453,-774.62178261,0.00032897,4]
[322460050,1713030641462,-1014.05805107,0.00032897,4]
[322460051,1713030641472,-6729.60772925,0.00032897,4]
[322460052,1713030641482,-256.51381724,0.00032958,2]
[322460053,1713030641492,-202.9164481,0.00032986,2]
[322460054,1713030641504,-202.9164481,0.00032986,2]
[322460055,1713030641513,-202.9164481,0.00032986,2]
[322460056,1713030641523,-202.9164481,0.00032986,2]
[322460057,1713030641675,-202.9164481,0.00032986,2]
[322460058,1713030641686,-202.9164481,0.00032986,2]
[322460059,1713030641695,-153.0,0.00032986,2]
[322460060,1713030641704,-153.0,0.00032986,2]
[322460061,1713030641714,-202.9164481,0.00032986,2]
[322460062,1713030641723,-153.0,0.00032986,2]
[322460063,1713030641732,-202.9164481,0.00032986,2]
[322460064,1713030641742,-306.0,0.00032986,2]
[322460065,1713030641751,-153.0,0.00032986,2]
[322460066,1713030641760,-202.9164481,0.00032986,2]
[322460067,1713030641770,-153.0,0.00032986,2]
[322460068,1713030641780,-153.0,0.00032986,2]
[322460069,1713030641789,-202.9164481,0.00032986,2]
[322460070,1713030641798,-153.0,0.00032986,2]
[322460071,1713030641807,-153.0,0.00032986,2]
[322460072,1713030641816,-202.9164481,0.00032986,2]
[322460073,1713030641826,-153.0,0.00032986,2]
[322460074,1713030641835,-153.0,0.00032986,2]
[322460075,1713030641845,-153.0,0.00032986,2]
[322460076,1713030641855,-153.0,0.00032986,2]
[322460077,1713030641865,-202.9164481,0.00032986,2]
[322460078,1713030641874,-153.0,0.00032986,2]
[322460079,1713030641884,-202.9164481,0.00032986,2]
[322460080,1713030641894,-153.0,0.00032986,2]
[322460081,1713030641904,-202.9164481,0.00032986,2]
[322460082,1713030641914,-202.9164481,0.00032986,2]
[322460083,1713030641923,-153.0,0.00032986,2]
[322460084,1713030641934,-153.0,0.00032986,2]
[322460085,1713030641943,-202.9164481,0.00032986,2]
[322460086,1713030641952,-153.0,0.00032986,2]
[322460087,1713030641962,-202.9164481,0.00032986,2]
[322460088,1713030641971,-202.9164481,0.00032986,2]
[322460089,1713030641981,-202.9164481,0.00032986,2]
[322460090,1713030641989,-202.9164481,0.00032986,2]
[322460091,1713030641998,-202.9164481,0.00032986,2]
[322460092,1713030642007,-202.9164481,0.00032986,2]
[322460093,1713030642018,-500.0,0.00032996,7]
[322460094,1713030642028,-2086.08257142,0.00032997,2]
[322460095,1713030642037,-41339.07952362,0.00032998,5]
[322460096,1713030642046,-936.36329074,0.00032998,4]
[322460097,1713030642056,-1337.94348966,0.00032999,4]
[322460098,1713030642066,-32828.46643548,0.00032999,2]
[322460099,1713030642076,-500.0,0.00032999,7]
[322460100,1713030642086,-802.22512729,0.00033,4]
[322460101,1713030642095,-232.0,0.00033,2]
[322460102,1713030642105,-256.51381724,0.0003314,2]
[322460103,1713030642115,-500.0,0.00033149,7]
[322460104,1713030642124,-500.0,0.00033149,7]
[322460105,1713030642134,-500.0,0.00033149,7]
[322460106,1713030642145,-500.0,0.00033149,7]
[322460107,1713030642154,-4817.28,0.00033149,2]
[322460108,1713030642163,-4817.28,0.00033149,2]
[322460109,1713030642173,-4817.28,0.00033149,2]
[322460110,1713030642183,-4817.28,0.00033149,2]
[322460111,1713030642192,-4817.28,0.00033149,2]
[322460112,1713030642202,-4817.28,0.00033149,2]
[322460113,1713030642211,-4817.28,0.00033149,2]
[322460114,1713030642220,-4817.28,0.00033149,2]
[322460115,1713030642230,-4817.28,0.00033149,2]
[322460116,1713030642239,-500.0,0.0003315,7]
[322460117,1713030642248,-1166.57,0.0003315,7]
[322460118,1713030642257,-671.75,0.0003315,7]
[322460119,1713030642267,-500.0,0.0003315,7]
[322460120,1713030642276,-1202.07,0.0003315,2]
[322460121,1713030642285,-500.0,0.0003315,7]
[322460122,1713030642295,-500.0,0.0003315,7]
[322460123,1713030642305,-990.27,0.0003315,7]
[322460124,1713030642314,-806.76,0.0003315,7]
[322460125,1713030642324,-500.0,0.0003315,7]
[322460126,1713030642333,-362.74231789,0.0003315,7]
[322460127,1713030642343,-500.0,0.0003315,7]
[322460128,1713030642353,-500.0,0.0003315,7]
[322460129,1713030642363,-500.0,0.0003315,7]
[322460130,1713030642372,-500.0,0.0003315,7]
[322460131,1713030642382,-1712.45,0.0003315,7]
[322460132,1713030642391,-500.0,0.0003315,7]
[322460133,1713030642405,-755.61,0.0003315,7]
[322460134,1713030642414,-500.0,0.0003315,7]
[322460135,1713030642423,-202.14408424,0.0003315,7]
[322460136,1713030642433,-500.0,0.0003315,7]
[322460137,1713030642442,-338.45477367,0.0003315,7]
[322460138,1713030642574,-500.0,0.00032876,2]
[322460139,1713030642583,-161.54522633,0.0003315,7]
[322460140,1713030642593,-564.74,0.0003315,7]
[322460141,1713030642602,-500.0,0.0003315,7]
[322460142,1713030642611,-500.0,0.0003315,7]
[322460143,1713030642620,-500.0,0.0003315,7]
[322460144,1713030642629,-1014.65,0.0003315,7]
[322460145,1713030642639,-3138.53,0.0003315,7]
[322460146,1713030642653,-960.46,0.0003315,7]
[322460147,1713030642662,-1060.38,0.0003315,7]
[322460148,1713030642671,-1120.04,0.0003315,7]
[322460149,1713030642683,-4897.68,0.0003315,7]
[322460150,1713030642693,-583.55,0.0003315,7]
[322460151,1713030642702,-2034.53,0.0003315,7]
[322460152,1713030642711,-2321.18,0.0003315,7]
[322460153,1713030642721,-607.19,0.0003315,7]
[322460154,1713030642730,-500.0,0.0003315,7]
[322460155,1713030642739,-721.73,0.0003315,7]
[322460156,1713030642749,-727.98,0.0003315,7]
[322460157,1713030642758,-1830.81932439,0.0003315,7]
[322460158,1713030642770,-219.17067561,0.0003315,7]
[322460159,1713030642780,-500.0,0.0003315,7]
[322460160,1713030642789,-500.0,0.0003315,7]
[322460161,1713030642798,-1937.39,0.0003315,7]
[322460162,1713030642807,-846.18,0.0003315,7]
[322460163,1713030642816,-2907.65,0.0003315,7]
[322460164,1713030642825,-1765.62,0.0003315,7]
[322460165,1713030642834,-602.67,0.0003315,7]
[322460167,1713030642844,-920.1,0.0003315,7]
[322460169,1713030642853,-1003.84,0.0003315,7]
[322460170,1713030642862,-1086.56,0.0003315,7]
[322460171,1713030642871,-1059.79863311,0.0003315,7]
[322460220,1713030644426,-153.0,0.00032164,2]
[322460221,1713030644437,-153.0,0.00032164,2]
[322460222,1713030644446,-194.0,0.00032178,2]
[322460223,1713030644457,-8.9164481,0.00032178,2]
[322460226,1713030644467,-1077.28136689,0.0003315,7]
[322460229,1713030644476,-500.0,0.0003315,7]
[322460231,1713030644486,-645.43,0.0003315,7]
[322460233,1713030644496,-500.0,0.0003315,7]
[322460234,1713030644508,-500.0,0.0003315,7]
[322460236,1713030644518,-472.21568517,0.0003315,7]
[322460831,1713031702119,336.04023636,0.000271,5]
[322460912,1713031838837,-608.82610058,0.00024997,2]
[322460913,1713031838848,-1740.2674439,0.00024997,2]
[322460914,1713031838858,-2007.11563747,0.00024998,2]
[322460915,1713031838868,-500.0,0.00024998,2]
[322460916,1713031838878,-2554.04381042,0.00024999,2]
[322460917,1713031838887,-961.60512625,0.00025,2]
[322460918,1713031838897,-284.95600161,0.00027,3]
[322460919,1713031838906,-300.0,0.00027099,2]
[322460920,1713031838915,-300.0,0.00027099,2]
[322460921,1713031838924,-19152.42794646,0.000271,2]
[322460922,1713031838933,-2301.34450958,0.000271,4]
[322460923,1713031838942,-649.831547,0.00027201,2]
[322460924,1713031838951,-305.522107,0.00027397,2]
[322460925,1713031838961,-173.135108,0.00027397,2]
[322460926,1713031838970,-162.191495,0.00027397,2]
[322460927,1713031838980,-165.57639,0.00027855,2]
[322460928,1713031838989,-24890.0,0.00028128,2]
[322460929,1713031838998,-420.0,0.00029294,2]
[322460930,1713031839007,-11509.54599339,0.00029735,2]
[322460932,1713031839017,-420.0,0.00029809,2]
[322460933,1713031839033,-924.28960085,0.00029835,2]
[322460937,1713031839043,-383.094846,0.00029878,2]
[322460940,1713031839052,-961.60512625,0.0003,2]
[322460943,1713031839062,-411.0,0.00031667,2]
[322460945,1713031839070,-394.33594007,0.000319,2]
[322460946,1713031839080,-2086.08257142,0.00031997,2]
[322460947,1713031839089,-284.67387657,0.00031998,4]
[322460948,1713031839099,-2455.98701678,0.00031999,4]
[322460949,1713031839108,-252.77532778,0.00031999,2]
[322460950,1713031839117,-362.03967621,0.00031999,2]
[322460951,1713031839126,-394.78959474,0.00031999,2]
[322460952,1713031839135,-369.79529933,0.00031999,2]
[322460953,1713031839145,-213.72526065,0.00031999,2]
[322460954,1713031839154,-124218.36483321,0.00032,30]
[322460955,1713031839163,-10619.43475223,0.00032,5]
[322460956,1713031839172,-153.0,0.00032,2]
[322460957,1713031839181,-153.0,0.00032,2]
[322460958,1713031839190,-153.0,0.00032,2]
[322460959,1713031839200,-153.0,0.00032,2]
[322460960,1713031839209,-202.9164481,0.00032,2]
[322460961,1713031839218,-153.0,0.00032,2]
[322460962,1713031839227,-153.0,0.00032,2]
[322460963,1713031839236,-153.0,0.00032,2]
[322460964,1713031839246,-153.0,0.00032,2]
[322460965,1713031839255,-153.0,0.00032,2]
[322460966,1713031839263,-202.9164481,0.00032,2]
[322460967,1713031839273,-153.0,0.00032,2]
[322460968,1713031839291,-153.0,0.00032,2]
[322460969,1713031839300,-202.9164481,0.00032,2]
[322460970,1713031839309,-153.0,0.00032,2]
[322460971,1713031839318,-153.0,0.00032,2]
[322460972,1713031839327,-202.9164481,0.00032,2]
[322460973,1713031839336,-153.0,0.00032,2]
[322460974,1713031839345,-306.0,0.00032,2]
[322460975,1713031839355,-202.9164481,0.00032,2]
[322460976,1713031839364,-202.9164481,0.00032,2]
[322460977,1713031839373,-202.9164481,0.00032,2]
[322460978,1713031839383,-202.9164481,0.00032,2]
[322460979,1713031839392,-202.9164481,0.00032,2]
[322460980,1713031839401,-202.9164481,0.00032,2]
[322460981,1713031839410,-153.0,0.00032,2]
[322460982,1713031839419,-190.98776883,0.00032,4]
[322460983,1713031839429,-202.9164481,0.00032,2]
[322460984,1713031839438,-153.0,0.00032,2]
[322460985,1713031839447,-153.0,0.00032,2]
[322460986,1713031839456,-202.9164481,0.00032,2]
[322460987,1713031839465,-202.9164481,0.00032,2]
[322460988,1713031839474,-202.9164481,0.00032,2]
[322460989,1713031839483,-202.9164481,0.00032,2]
[322460990,1713031839492,-202.9164481,0.00032,2]
[322460991,1713031839501,-202.9164481,0.00032,2]
[322460992,1713031839510,-202.9164481,0.00032,2]
[322460993,1713031839519,-202.9164481,0.00032,2]
[322460994,1713031839536,-202.9164481,0.00032,2]
[322460995,1713031839545,-202.9164481,0.00032,2]
[322460996,1713031839554,-202.9164481,0.00032,2]
[322460998,1713031839563,-202.9164481,0.00032,2]
[322461000,1713031839573,-153.0,0.00032,2]
[322461001,1713031839583,-153.0,0.00032,2]
[322461003,1713031839593,-153.0,0.00032,2]
[322461005,1713031839603,-306.0,0.00032,2]
[322461007,1713031839612,-153.0,0.00032,2]
[322461009,1713031839621,-620.04717224,0.00032139,2]
[322461011,1713031839631,-394.33594006,0.00032188,2]
[322461013,1713031839641,-394.33594006,0.00032475,2]
[322461015,1713031839651,-394.33594006,0.00032763,2]
[322461017,1713031839662,-88157.63835663,0.00032776,5]
[322461019,1713031839671,-3000.0,0.00032776,2]
[322461021,1713031839680,-587.0,0.0003279,2]
[322461023,1713031839689,-1337.94348966,0.00032874,4]
[322461025,1713031839700,-936.36329074,0.00032874,4]
[322461027,1713031839709,-394.80913788,0.00032875,2]
[322461029,1713031839718,-500.0,0.00032876,7]
[322461031,1713031839727,-849.98,0.00032876,7]
[322461033,1713031839736,-500.0,0.00032876,7]
[322461035,1713031839745,-500.0,0.00032876,7]
[322461037,1713031839754,-500.0,0.00032876,7]
[322461039,1713031839764,-500.0,0.00032876,7]
[322461041,1713031839773,-793.51,0.00032876,7]
[322461043,1713031839791,-500.0,0.00032876,7]
[322461045,1713031839800,-500.0,0.00032876,7]
[322461046,1713031839810,-500.0,0.00032876,7]
[322461048,1713031839819,-500.0,0.00032876,7]
[322461050,1713031839829,-500.0,0.00032876,7]
[322461052,1713031839838,-500.0,0.00032876,7]
[322461054,1713031839848,-500.0,0.00032876,7]
[322461056,1713031839862,-500.0,0.00032876,7]
[322461058,1713031839871,-500.0,0.00032876,7]
[322461060,1713031839881,-500.0,0.00032876,7]
[322461062,1713031839889,-247.71452935,0.00032876,7]
[322461064,1713031839902,-541.25,0.00032876,7]
[322461066,1713031839912,-1035.29,0.00032876,7]
[322461069,1713031839923,-500.0,0.00032876,7]
[322461070,1713031839932,-500.0,0.00032876,7]
[322461071,1713031839942,-500.0,0.00032876,7]
[322461072,1713031839951,-500.0,0.00032876,7]
[322461073,1713031839960,-500.0,0.00032876,7]
[322461074,1713031839970,-500.0,0.00032876,7]
[322461075,1713031839979,-500.0,0.00032876,7]
[322461076,1713031839988,-500.0,0.00032876,7]
[322461077,1713031839997,-500.0,0.00032876,7]
[322461078,1713031840006,-500.0,0.00032876,7]
[322461079,1713031840015,-500.0,0.00032876,7]
[322461080,1713031840026,-519.03290826,0.00032876,7]
[322461081,1713031840039,-504.24950144,0.00032876,7]
[322461082,1713031840049,-500.0,0.00032876,7]
[322461083,1713031840058,-500.0,0.00032876,7]
[322461084,1713031840068,-500.0,0.00032876,7]
[322461085,1713031840077,-500.0,0.00032876,7]
[322461086,1713031840086,-500.0,0.00032876,7]
[322461087,1713031840095,-500.0,0.00032876,7]
[322461088,1713031840105,-500.0,0.00032876,7]
[322461090,1713031840114,-489.54793724,0.00032876,7]
[322461091,1713031840123,-500.0,0.00032876,7]
[322461092,1713031840133,-500.0,0.00032876,7]
[322461094,1713031840142,-500.0,0.00032876,7]
[322461096,1713031840151,-1790.02,0.00032876,7]
[322461098,1713031840160,-786.78,0.00032876,7]
[322461100,1713031840169,-500.0,0.00032876,7]
[322461103,1713031840178,-500.0,0.00032876,7]
[322461105,1713031840188,-500.0,0.00032876,7]
[322461107,1713031840196,-471.65492899,0.00032876,7]
[322461109,1713031840205,-500.0,0.00032876,7]
[322461111,1713031840214,-500.0,0.00032876,7]
[322461113,1713031840223,-500.0,0.00032876,7]
[322461115,1713031840232,-500.0,0.00032876,7]
[322461117,1713031840242,-437.96672686,0.00032876,7]
[322461119,1713031840251,-518.626347,0.00032876,7]
[322461121,1713031840260,-869.53,0.00032876,7]
[322461123,1713031840271,-500.0,0.00032876,7]
[322461125,1713031840288,-500.0,0.00032876,7]
[322461127,1713031840297,-209.69412608,0.00032876,7]
[322461130,1713031840306,-499.39043389,0.00032876,7]
[322461132,1713031840315,-3150.42,0.00032876,7]
[322461134,1713031840324,-1284.61,0.00032876,7]
[322461136,1713031840334,-1117.19,0.00032876,7]
[322461138,1713031840343,-500.0,0.00032876,7]
[322461140,1713031840352,-500.0,0.00032876,7]
[322461142,1713031840361,-1124.28,0.00032876,7]
[322461144,1713031840370,-1011.91,0.00032876,7]
[322461146,1713031840379,-2009.33,0.00032876,7]
[322461147,1713031840388,-500.0,0.00032876,7]
[322461149,1713031840398,-2042.23,0.00032876,7]
[322461151,1713031840407,-500.0,0.00032876,7]
[322461153,1713031840417,-704.83,0.00032876,7]
[322461155,1713031840426,-500.0,0.00032876,7]
[322461157,1713031840435,-500.0,0.00032876,7]
[322461159,1713031840443,-500.0,0.00032876,7]
[322461161,1713031840453,-5160.06,0.00032876,7]
[322461163,1713031840461,-724.46,0.00032876,7]
[322461165,1713031840470,-639.71,0.00032876,7]
[322461167,1713031840480,-2329.97,0.00032876,7]
[322461181,1713031840610,-500.0,0.00032876,7]
[322461183,1713031840620,-614.82,0.00032876,7]
[322461185,1713031840630,-2057.75,0.00032876,7]
[322461187,1713031840640,-500.0,0.00032876,7]
[322461189,1713031840649,-500.0,0.00032876,7]
[322461191,1713031840658,-730.74,0.00032876,7]
[322461193,1713031840667,-500.0,0.00032876,7]
[322461195,1713031840677,-500.0,0.00032876,7]
[322461197,1713031840686,-500.0,0.00032876,7]
[322461199,1713031840696,-309.73189997,0.00032876,7]
[322461201,1713031840705,-500.0,0.00032876,7]
[322461203,1713031840715,-522.45962337,0.00032876,7]
[322461205,1713031840724,-501.17687522,0.00032876,7]
[322461207,1713031840734,-3029.59,0.00032876,7]
[322461209,1713031840743,-849.39,0.00032876,7]
[322461211,1713031840753,-500.0,0.00032876,7]
[322461213,1713031840762,-567.12,0.00032876,7]
[322461215,1713031840771,-920.34,0.00032876,7]
[322461217,1713031840789,-2242.32,0.00032876,7]
[322461219,1713031840798,-500.0,0.00032876,7]
[322461221,1713031840807,-500.0,0.00032876,7]
[322461223,1713031840816,-500.0,0.00032876,7]
[322461225,1713031840826,-1771.36,0.00032876,7]
[322461227,1713031840836,-647.87,0.00032876,7]
[322461229,1713031840845,-172.81493588,0.00032876,7]
[322461231,1713031840857,-871.67,0.00032876,7]
[322461233,1713031840867,-500.0,0.00032876,7]
[322461235,1713031840876,-500.0,0.00032876,7]
[322461237,1713031840886,-1090.68,0.00032876,7]
[322461239,1713031840896,-500.0,0.00032876,7]
[322461241,1713031840905,-500.0,0.00032876,7]
[322461243,1713031840914,-275.00288816,0.00032876,7]
[322461245,1713031840924,-27204.01,0.00032876,7]
[322461247,1713031840933,-500.0,0.00032876,7]
[322461249,1713031840943,-632.92,0.00032876,7]
[322461251,1713031840954,-500.0,0.00032876,7]
[322461253,1713031840963,-530.91,0.00032876,7]
[322461255,1713031840972,-500.0,0.00032876,7]
[322461257,1713031840981,-500.0,0.00032876,7]
[322461259,1713031840990,-1007.65,0.00032876,7]
[322461260,1713031840999,-504.6097672,0.00032876,7]
[322461262,1713031841008,-500.0,0.00032876,7]
[322461264,1713031841017,-2087.9,0.00032876,7]
[322461266,1713031841033,-508.9012167,0.00032876,7]
[322461268,1713031841043,-500.0,0.00032876,7]
[322461271,1713031841053,-872.59,0.00032876,7]
[322461273,1713031841063,-8724.37,0.00032876,7]
[322461275,1713031841072,-500.0,0.00032876,7]
[322461277,1713031841082,-500.0,0.00032876,7]
[322461278,1713031841091,-500.0,0.00032876,7]
[322461280,1713031841101,-1240.47,0.00032876,2]
[322461282,1713031841111,-400.0,0.00032877,2]
[322461284,1713031841120,-500.0,0.00032998,7]
[322461287,1713031841130,-20642.71798841,0.00032999,2]
[322461288,1713031841140,-1200.0,0.00033,4]
[322461290,1713031841149,-302.0,0.00033,2]
[322461292,1713031841159,-394.33594006,0.0003305,2]
[322461294,1713031841168,-304.95310847,0.00033147,2]
[322461297,1713031841178,-181.18098361,0.00033148,4]
[322461298,1713031841188,-500.0,0.00033148,7]
[322461300,1713031841197,-538.59791891,0.00033149,4]
[322461302,1713031841207,-179.90291522,0.00033149,4]
[322461304,1713031841216,-500.0,0.00033149,7]
[322461306,1713031841225,-500.0,0.00033149,7]
[322461308,1713031841235,-344.61826694,0.00033149,7]
[322461310,1713031841244,-1014.05805107,0.0003315,4]
[322461312,1713031841253,-500.0,0.0003315,7]
[322461314,1713031841263,-849.98,0.0003315,7]
[322461316,1713031841273,-500.0,0.0003315,7]
[322461318,1713031841291,-500.0,0.0003315,7]
[322461320,1713031841300,-793.51,0.0003315,7]
[322461322,1713031841309,-151.96993164,0.0003315,7]
[322461324,1713031841319,-500.0,0.0003315,7]
[322461327,1713031841328,-500.0,0.0003315,7]
[322461329,1713031841338,-500.0,0.0003315,7]
[322461331,1713031841348,-500.0,0.0003315,7]
[322461333,1713031841357,-541.25,0.0003315,7]
[322461335,1713031841366,-1035.29,0.0003315,7]
[322461337,1713031841376,-500.0,0.0003315,7]
[322461339,1713031841386,-630.98448967,0.0003315,7]
[322461341,1713031841396,-500.0,0.0003315,7]
[322461343,1713031841406,-500.0,0.0003315,7]
[322461345,1713031841415,-500.0,0.0003315,7]
[322461347,1713031841425,-500.0,0.0003315,7]
[322461349,1713031841435,-151.0,0.0003315,2]
[322461351,1713031841445,-900.938851,0.0003315,2]
[322461353,1713031841454,-500.0,0.0003315,7]
[322461355,1713031841464,-900.938851,0.0003315,2]
[322461356,1713031841473,-500.0,0.0003315,7]
[322461358,1713031841482,-253.704668,0.0003315,2]
[322461360,1713031841492,-500.0,0.0003315,7]
[322461362,1713031841500,-1790.02,0.0003315,7]
[322461364,1713031841510,-151.0,0.0003315,2]
[322461366,1713031841519,-786.78,0.0003315,7]
[322461368,1713031841537,-500.0,0.0003315,7]
[322461370,1713031841546,-151.0,0.0003315,2]
[322461372,1713031841555,-151.0,0.0003315,2]
[322461374,1713031841565,-151.0,0.0003315,2]
[322461376,1713031841575,-500.0,0.0003315,7]
[322461378,1713031841584,-151.0,0.0003315,2]
[322461380,1713031841593,-500.0,0.0003315,7]
[322461382,1713031841603,-500.0,0.0003315,7]
[322461384,1713031841613,-869.53,0.0003315,7]
[322461386,1713031841622,-253.9,0.0003315,2]
[322461388,1713031841632,-500.0,0.0003315,7]
[322461390,1713031841642,-253.9,0.0003315,2]
[322461392,1713031841651,-305.35918201,0.0003315,7]
[322461394,1713031841663,-166.831049,0.0003315,2]
[322461396,1713031841672,-166.831049,0.0003315,2]
[322461398,1713031841681,-3150.42,0.0003315,7]
[322461400,1713031841691,-1284.61,0.0003315,7]
[322461402,1713031841700,-1117.19,0.0003315,7]
[322461404,1713031841709,-364.05256396,0.0003315,7]
[322461406,1713031841719,-1124.28,0.0003315,7]
[322461408,1713031841728,-1011.91,0.0003315,7]
[322461410,1713031841738,-1081.927643,0.0003315,2]
[322461412,1713031841747,-2009.33,0.0003315,7]
[322461414,1713031841756,-1081.927643,0.0003315,2]
[322461416,1713031841765,-151.0,0.0003315,2]
[322461418,1713031841774,-2042.23,0.0003315,7]
[322461420,1713031841792,-500.0,0.0003315,7]
[322461422,1713031841801,-704.83,0.0003315,7]
[322461424,1713031841810,-151.0,0.0003315,2]
[322461426,1713031841819,-151.0,0.0003315,2]
[322461427,1713031841828,-500.0,0.0003315,7]
[322461429,1713031841838,-500.0,0.0003315,7]
[322461431,1713031841846,-5160.06,0.0003315,7]
[322461433,1713031841856,-724.46,0.0003315,7]
[322461435,1713031841866,-484.87718755,0.0003315,7]
[322461582,1713031851442,-4723.41419067,0.000271,2]
[322461588,1713031851501,-7467.60132664,0.000271,2]
[322461590,1713031851517,-1565.29484828,0.000271,4]
[322461592,1713031851526,-797.07,0.00032876,7]
[322461593,1713031851537,-500.0,0.00032876,7]
[322461595,1713031851547,-500.0,0.00032876,7]
[322461597,1713031851557,-3498.33330919,0.0003305,2]
[322461599,1713031851566,-5676.76,0.00033149,2]
[322461600,1713031851575,-1500.1934894,0.00033149,2]
[322461607,1713032290888,1534.3438425,0.00037219,30]
[322461700,1713033038018,-1740.2674439,0.00027352,2]
[322461701,1713033038029,-608.82610058,0.00027353,2]
[322461702,1713033038039,-500.0,0.00027354,2]
[322461704,1713033038049,-163.427783,0.00027397,2]
[322461706,1713033038058,-166.967293,0.00027397,2]
[322461708,1713033038068,-173.135108,0.00029798,2]
[322461710,1713033038077,-324.915773,0.00030409,2]
[322461711,1713033038086,-1246.3466701,0.00030561,2]
[322461713,1713033038096,-175.299891,0.00031043,2]
[322461715,1713033038105,-400.0,0.00031999,2]
[322461716,1713033038114,-400.0,0.00031999,2]
[322461717,1713033038124,-10619.43475223,0.00032,5]
[322461718,1713033038134,-344.785361,0.00032713,2]
[322461719,1713033038143,-197.16797003,0.00032776,2]
[322461720,1713033038153,-538.03523509,0.00032875,4]
[322461721,1713033038162,-500.0,0.00032876,7]
[322461722,1713033038171,-500.0,0.00032876,7]
[322461723,1713033038180,-500.0,0.00032876,7]
[322461724,1713033038190,-500.0,0.00032876,7]
[322461725,1713033038200,-500.0,0.00032876,7]
[322461726,1713033038209,-500.0,0.00032876,7]
[322461727,1713033038218,-500.0,0.00032876,7]
[322461728,1713033038227,-500.0,0.00032876,7]
[322461729,1713033038237,-500.0,0.00032876,7]
[322461730,1713033038250,-500.0,0.00032876,7]
[322461731,1713033038259,-500.0,0.00032876,7]
[322461732,1713033038270,-504.09628153,0.00032876,7]
[322461733,1713033038279,-500.0,0.00032876,7]
[322461734,1713033038289,-500.0,0.00032876,7]
[322461735,1713033038441,-500.0,0.00032876,7]
[322461736,1713033038452,-500.0,0.00032876,7]
[322461737,1713033038461,-275.83421792,0.00032876,7]
[322461738,1713033038471,-2242.32,0.00032876,7]
[322461739,1713033038481,-500.0,0.00032876,7]
[322461740,1713033038490,-500.0,0.00032876,7]
[322461741,1713033038499,-500.0,0.00032876,7]
[322461742,1713033038508,-500.0,0.00032876,7]
[322461743,1713033038518,-500.0,0.00032876,7]
[322461744,1713033038527,-500.0,0.00032876,7]
[322461745,1713033038536,-530.91,0.00032876,7]
[322461746,1713033038546,-489.54793724,0.00032876,7]
[322461747,1713033038556,-503.33800379,0.00032876,7]
[322461748,1713033038565,-500.0,0.00032876,7]
[322461749,1713033038574,-365.15564107,0.00032876,7]
[322461750,1713033038584,-1240.47,0.00032876,2]
[322461751,1713033038595,-500.0,0.00032876,14]
[322461752,1713033038604,-872.59,0.00032876,7]
[322461753,1713033038614,-500.0,0.00032876,7]
[322461754,1713033038624,-449.79776823,0.00032876,7]
[322461755,1713033038633,-500.0,0.00032876,7]
[322461756,1713033038642,-191.06795352,0.00032876,7]
[322461757,1713033038652,-500.0,0.00032876,7]
[322461758,1713033038662,-500.0,0.00032876,7]
[322461759,1713033038671,-500.0,0.00032876,7]
[322461760,1713033038681,-500.0,0.00032876,7]
[322461761,1713033038691,-500.0,0.00032876,7]